bitfinex-derivatives/quotes_ETHF0:USTF0_20240923
["timestamp","ask_amount","ask_price","bid_price","bid_amount"]
[1727069536526,5.07771111,2657.5,2657.4,2.43852068]
[1727069537438,1.86991111,2657.5,2657.4,2.43882028]
[1727069538135,5.07771111,2657.5,2657.4,2.43882028]
[1727069538442,5.26593914,2657.5,2657.4,2.43882028]
[1727069538741,5.26593914,2657.5,2657.4,1.93534506]
[1727069539038,5.26593914,2657.5,2657.4,2.43891157]
[1727069539340,5.26593914,2657.5,2657.4,3.24480244]
[1727069539639,5.07771111,2657.5,2657.4,4.18772033]
[1727069539842,5.07771111,2657.5,2657.4,3.20237527]
[1727069540839,1.86991111,2657.5,2657.4,3.20237527]
[1727069541438,1.86991111,2657.5,2657.4,4.1894043]
[1727069542644,5.07771111,2657.5,2657.4,4.1894043]
[1727069542845,5.07771111,2657.5,2657.4,3.24648641]
[1727069543142,5.07771111,2657.5,2657.4,4.18943038]
[1727069543341,5.26594208,2657.5,2657.4,4.18943038]
[1727069543544,5.07771111,2657.5,2657.4,4.18943038]
[1727069544040,5.07771111,2657.5,2657.4,3.20240135]
[1727069544241,5.07771111,2657.5,2657.4,3.20248153]
[1727069545345,5.26593979,2657.5,2657.4,4.18957468]
[1727069545579,5.26593978,2657.5,2657.4,4.18962181]
[1727069545741,5.26593978,2657.5,2657.4,2.88008425]
[1727069545936,5.26593978,2657.5,2657.4,4.18966239]
[1727069546244,5.26593978,2657.5,2657.4,4.56594239]
[1727069546643,5.26593978,2657.5,2657.4,4.18966239]
[1727069547647,5.26594006,2657.5,2657.4,3.24667129]
[1727069547951,5.26594006,2657.5,2657.4,4.18969444]
[1727069548537,3.79072895,2657.5,2657.4,2.44077705]
[1727069548744,4.16699895,2657.5,2657.4,1.49077705]
[1727069549041,15.42421574,2657.5,2657.2,1.36340315]
[1727069549358,1.47740632,2657.3,2657.2,1.36340315]
[1727069549841,1.47740632,2657.3,2657.2,1.49077758]
[1727069550244,1.47740632,2657.3,2657.2,1.86708758]
[1727069550449,0.98488937,2657.4,2657.2,12.87110334]
[1727069550649,0.3911,2657.6,2657.3,11.60103996]
[1727069550650,0.98488937,2657.6,2657.3,11.60103996]
[1727069550842,1.47740632,2657.7,2657.6,0.37626]
[1727069550843,0.98488937,2657.7,2657.6,0.37626]
[1727069551047,0.98488937,2657.7,2657.6,4.10903866]
[1727069551244,0.98488937,2657.7,2657.6,4.85733866]
[1727069552457,0.98488937,2657.7,2657.6,4.85702662]
[1727069553646,2.46229569,2657.8,2657.7,0.37624]
[1727069553849,0.98488937,2657.9,2657.8,0.37623]
[1727069554056,4.9289886,2658.0,2657.9,0.37621]
[1727069554242,0.98488937,2658.0,2657.9,3.2385003]
[1727069554447,0.98488937,2658.0,2657.9,5.62848435]
[1727069554761,0.98488937,2658.0,2657.9,4.7487462]
[1727069555053,3.2078,2658.0,2657.8,41.7863462]
[1727069555352,2.04230799,2657.9,2657.8,40.8]
[1727069555948,0.56559688,2657.9,2657.8,40.8]
[1727069556148,0.56559688,2657.9,2657.8,41.75]
[1727069556346,2.0425331,2657.9,2657.8,1.45333888]
[1727069556552,2.0425331,2657.9,2657.8,1.45333225]
[1727069556958,2.04254132,2657.9,2657.8,1.45333225]
[1727069557350,1.85433622,2657.9,2657.8,1.45333225]
[1727069558657,1.85433622,2657.9,2657.8,0.95]
[1727069559062,5.06213622,2657.9,2657.8,0.95]
[1727069559357,3.5852,2657.9,2657.8,0.95]
[1727069559854,0.3774,2657.9,2657.8,0.95]
[1727069560059,1.36206267,2657.9,2657.8,2.3125762]
[1727069560354,1.36206267,2657.9,2657.8,2.81584278]
[1727069560954,0.98466267,2657.9,2657.8,2.81584278]
[1727069561155,0.98466267,2657.9,2657.8,5.29681722]
[1727069561360,0.98466267,2658.0,2657.9,0.37621]
[1727069561557,0.98466267,2658.0,2657.9,1.82947658]
[1727069561960,1.84353622,2658.1,2658.0,0.3762]
[1727069564155,1.47693622,2658.1,2658.0,0.3762]
[1727069564362,1.47693622,2658.2,2658.1,0.37618]
[1727069564568,1.66511236,2658.2,2658.1,0.95]
[1727069564758,0.54817614,2658.2,2658.1,0.95]
[1727069565452,0.54817614,2658.2,2658.1,1.32618]
[1727069565453,2.02442085,2658.2,2658.1,1.32618]
[1727069566061,0.54817614,2658.2,2658.1,1.32618]
[1727069566262,5.9340751,2658.3,2658.2,0.37617]
[1727069566263,2.23309157,2658.3,2658.2,0.37617]
[1727069566454,0.98423244,2658.3,2658.2,0.37617]
[1727069566656,0.98423244,2658.3,2658.2,1.99372421]
[1727069566962,0.98423244,2658.4,2658.3,0.37616]
[1727069567268,0.98423244,2658.4,2658.3,1.32616]
[1727069569255,1.73343244,2658.5,2658.2,1.49086]
[1727069569574,4.19203244,2658.3,2658.0,4.8562]
[1727069569863,1.34923244,2658.2,2658.0,4.48]
[1727069570066,0.3885,2658.1,2658.0,4.8562]
[1727069570264,0.779,2658.1,2658.0,4.8562]
[1727069571057,0.779,2658.1,2658.0,1.3262]
[1727069575473,4.19203244,2658.3,2658.2,0.37617]
[1727069575765,4.19203244,2658.3,2658.2,0.95]
[1727069576670,0.98423244,2658.3,2658.2,0.95]
[1727069576967,4.19203244,2658.3,2658.2,1.32617]
[1727069577575,0.98423244,2658.4,2658.2,1.32617]
[1727069577960,0.98423244,2658.4,2658.2,0.95]
[1727069578175,2.12003244,2658.5,2658.2,0.95]
[1727069578471,2.12003244,2658.5,2658.4,1.32614]
[1727069578671,2.12003244,2658.5,2658.0,0.9863462]
[1727069578882,0.98423244,2658.4,2657.9,4.5163462]
[1727069579174,0.98423244,2658.4,2658.3,0.95]
[1727069583168,0.98423244,2658.4,2658.1,3.89518]
[1727069583367,4.19146372,2658.3,2658.1,3.89518]
[1727069583565,0.98366372,2658.2,2658.1,3.89518]
[1727069583770,1.34386372,2658.2,2658.1,3.89518]
[1727069588481,1.34386372,2658.2,2658.1,4.84518]
[1727069588777,1.34386372,2658.2,2657.7,41.7863462]
[1727069588778,6.43244372,2658.2,2657.7,41.7863462]
[1727069589077,3.2078,2657.9,2657.7,41.75]
[1727069589372,0.3979,2657.8,2657.7,41.75]
[1727069589580,0.3979,2657.8,2657.7,42.12624]
[1727069591580,0.3979,2657.8,2657.7,41.75]
[1727069592571,0.3979,2657.8,2657.7,42.12624]
[1727069593378,0.3979,2657.8,2657.7,42.62895766]
[1727069593767,0.3979,2657.8,2657.7,41.75]
[1727069593974,0.3979,2657.8,2657.7,40.8]
[1727069594175,1.38156372,2657.8,2657.7,41.75]
[1727069594368,1.38235145,2657.8,2657.7,41.75]
[1727069594581,0.3979,2657.8,2657.7,41.75]
[1727069595080,1.87459157,2657.8,2657.7,41.75]
[1727069595278,1.87459157,2657.8,2657.7,0.95]
[1727069595476,3.2078,2657.9,2657.8,0.37623]
[1727069595477,1.47669157,2657.9,2657.8,0.37623]
[1727069595678,1.47669157,2657.9,2657.8,0.95]
[1727069595877,1.47669157,2657.9,2657.8,42.12623]
[1727069596568,1.47669157,2657.9,2657.8,41.75]
[1727069597781,1.6648907,2657.9,2657.8,41.75]
[1727069598379,1.66489024,2657.9,2657.8,41.75]
[1727069599383,1.66489024,2657.9,2657.8,42.12623]
[1727069602487,1.47669157,2657.9,2657.8,42.12623]
[1727069602681,1.47669157,2657.9,2657.8,42.62932942]
[1727069603881,1.47669157,2657.9,2657.8,42.25309942]
[1727069604084,1.47669157,2657.9,2657.8,41.75]
[1727069604395,1.6648902,2657.9,2657.8,41.75]
[1727069604580,1.6648902,2657.9,2657.8,42.12623]
[1727069605690,1.66489243,2657.9,2657.8,42.12623]
[1727069606987,1.66489243,2657.9,2657.8,41.75]
[1727069607184,1.47669157,2657.9,2657.8,41.75]
[1727069607390,1.66489484,2657.9,2657.8,42.12623]
[1727069608988,1.66489388,2657.9,2657.8,42.12623]
[1727069610388,1.47669157,2657.9,2657.8,42.12623]
[1727069610693,1.47669157,2657.9,2657.8,42.85503]
[1727069612391,1.47669157,2657.9,2657.8,42.4788]
[1727069613190,1.66489143,2657.9,2657.8,42.4788]
[1727069614694,1.66489143,2657.9,2657.8,42.1166]
[1727069616692,1.66489389,2657.9,2657.8,42.1166]
[1727069617796,1.66489389,2657.9,2657.8,41.75]
[1727069620994,1.47669157,2657.9,2657.8,41.75]
[1727069621200,0.98449045,2657.9,2657.8,42.12623]
[1727069621397,0.9845297,2657.9,2657.8,42.12623]
[1727069621704,0.98452433,2657.9,2657.8,42.12623]
[1727069622000,1.47669157,2658.0,2657.8,42.12623]
[1727069622197,1.66488207,2658.0,2657.8,42.12623]
[1727069622591,0.98459856,2657.9,2657.8,42.7363462]
[1727069622795,1.47669157,2657.9,2657.8,41.75]
[1727069623388,0.98467272,2657.9,2657.8,43.1125762]
[1727069623800,0.98467272,2657.9,2657.8,44.42094786]
[1727069624204,0.98467272,2657.9,2657.8,45.3396525]
[1727069625308,0.98467272,2657.9,2657.8,44.3533063]
[1727069625503,0.98467272,2657.9,2657.8,43.04493464]
[1727069625692,0.98467272,2657.9,2657.8,44.35361491]
[1727069626101,0.98467272,2657.9,2657.8,44.35373242]
[1727069626296,0.98467272,2657.9,2657.8,45.83363006]
[1727069628104,0.98467272,2657.9,2657.8,46.30048845]
[1727069628302,0.98467272,2657.9,2657.8,45.83363006]
[1727069629308,0.98467272,2657.9,2657.8,46.30055053]
[1727069629900,0.98467272,2657.9,2657.8,45.92432053]
[1727069630201,1.47669157,2658.0,2657.8,45.92434037]
[1727069630511,6.3353751,2658.1,2657.9,2.29552562]
[1727069630703,0.18819324,2658.0,2657.9,0.98684537]
[1727069630901,0.18819324,2658.0,2657.9,1.30923]
[1727069631204,0.3763,2657.3,2657.1,1.47989764]
[1727069631398,9.10062061,2657.2,2656.9,0.58695311]
[1727069631601,3.88764478,2657.9,2656.9,0.58695311]
[1727069631602,2.95166626,2658.4,2658.3,3.2078]
[1727069631800,2.60625411,2659.3,2659.2,0.37603]
[1727069632005,3.84324272,2660.3,2659.2,0.37603]
[1727069632006,0.3983,2660.3,2659.2,9.57908834]
[1727069632197,0.3983,2660.3,2660.0,0.95]
[1727069632395,0.3983,2660.3,2660.2,1.47828386]
[1727069632596,0.3983,2660.3,2660.0,2.42828386]
[1727069632803,3.9053,2660.3,2660.1,1.30062924]
[1727069632992,3.9053,2660.3,2660.0,2.42828386]
[1727069633196,3.9053,2660.3,2660.1,4.50839115]
[1727069633398,3.9053,2660.3,2660.1,3.2078]
[1727069633701,3.9053,2660.3,2660.0,0.95]
[1727069633702,0.3983,2660.3,2660.0,0.95]
[1727069634202,0.3983,2660.3,2659.8,5.63608386]
[1727069634407,0.3983,2660.3,2659.8,3.2078]
[1727069634909,3.8923,2660.3,2659.8,3.58374]
[1727069635103,3.8923,2660.3,2659.8,3.2078]
[1727069636005,0.3983,2660.3,2659.8,3.2078]
[1727069636195,3.494,2660.2,2659.8,3.2078]
[1727069638303,0.77418,2660.3,2659.8,3.2078]
[1727069638504,3.494,2660.2,2659.8,3.2078]
[1727069639709,3.86989,2660.2,2659.8,3.2078]
[1727069640006,3.494,2660.2,2659.8,3.2078]
[1727069640203,3.86889,2660.2,2659.8,3.2078]
[1727069640407,3.493,2660.2,2659.8,3.2078]
[1727069640796,0.3983,2660.3,2659.5,3.2078]
[1727069640797,2.4483,2660.3,2659.5,3.2078]
[1727069641001,3.2078,2660.2,2659.7,0.37595]
[1727069641203,3.2078,2660.2,2659.5,3.2078]
[1727069641413,3.493,2660.1,2659.5,3.2078]
[1727069641607,3.493,2660.1,2659.5,3.58378]
[1727069641803,3.493,2660.1,2659.6,0.37597]
[1727069642201,3.493,2660.1,2659.5,5.63378]
[1727069642715,0.3612,2660.0,2659.5,5.63378]
[1727069643006,0.3798,2659.9,2659.5,5.63378]
[1727069643411,0.3798,2659.9,2659.5,3.58378]
[1727069644600,0.3798,2659.9,2659.5,3.2078]
[1727069644810,0.3798,2659.9,2659.5,3.58378]
[1727069647915,0.3798,2659.9,2659.6,2.05]
[1727069654812,0.361,2659.8,2659.6,2.05]
[1727069656818,0.361,2659.8,2659.6,5.2578]
[1727069657716,0.3798,2659.9,2659.6,5.2578]
[1727069657913,0.3798,2659.9,2659.8,2.05]
[1727069661019,0.7769,2659.9,2659.8,2.05]
[1727069663520,1.15283,2659.9,2659.8,2.05]
[1727069664321,0.7769,2659.9,2659.5,2.42599]
[1727069664527,0.7769,2659.9,2659.7,2.05]
[1727069666035,1.15283,2659.9,2659.7,2.05]
[1727069668523,0.73712,2660.0,2659.7,5.2578]
[1727069668729,0.7411,2660.3,2659.9,2.05]
[1727069668918,0.7411,2660.3,2659.8,4.1206]
[1727069668919,0.088,2661.1,2660.3,2.05]
[1727069669223,0.3689,2661.2,2661.0,2.05]
[1727069669426,0.3689,2661.2,2661.1,40.8]
[1727069669724,3.2078,2661.3,2661.1,40.8]
[1727069669924,3.2078,2661.3,2661.2,2.05]
[1727069670126,1.1246,2661.6,2661.2,2.05]
[1727069670326,1.1246,2661.6,2661.1,40.8]
[1727069670327,0.3767,2661.6,2661.5,2.05]
[1727069672525,0.37571,2661.5,2661.1,46.0578]
[1727069674829,0.37575,2661.2,2661.1,3.2078]
[1727069675026,0.3767,2661.6,2661.1,3.2078]
[1727069675027,0.3658,2661.4,2661.1,3.2078]
[1727069675334,0.73694,2661.3,2661.1,3.2078]
[1727069675526,0.3612,2661.3,2661.1,5.2578]
[1727069676030,0.3767,2661.6,2661.2,4.13335]
[1727069676231,0.3767,2661.6,2661.5,2.05]
[1727069681926,0.3984,2662.0,2661.5,6.1833]
[1727069682237,0.3984,2662.0,2661.8,2.05]
[1727069690234,0.3984,2662.0,2661.8,5.2578]
[1727069691032,0.3984,2662.0,2661.8,5.63346]
[1727069691232,0.3984,2662.0,2661.8,5.63345]
[1727069691638,7.15189923,2662.6,2661.8,5.2578]
[1727069691935,0.37558,2662.4,2662.0,2.05]
[1727069692138,0.37558,2662.4,2662.0,2.42563]
[1727069692334,1.1243,2662.5,2662.3,2.05]
[1727069692527,1.1243,2662.5,2662.2,40.8]
[1727069692731,0.37561,2662.2,2662.1,3.2078]
[1727069693137,0.37561,2662.2,2661.6,2.42569]
[1727069693138,0.37564,2662.0,2661.7,44.0078]
[1727069693340,0.749,2661.9,2661.7,3.2078]
[1727069695642,1.12465,2661.9,2661.7,3.2078]
[1727069696043,0.37566,2661.8,2661.7,3.2078]
[1727069696235,0.37566,2661.8,2661.7,2.6088]
[1727069697644,0.749,2661.9,2661.5,40.8]
[1727069697854,0.9392,2661.7,2661.1,2.05]
[1727069698149,0.9392,2661.7,2661.0,3.58357]
[1727069698150,0.37572,2661.4,2661.0,3.58357]
[1727069698346,0.7446,2661.3,2661.1,0.37576]
[1727069698650,0.7446,2661.3,2661.2,3.2078]
[1727069699245,0.7446,2661.3,2661.2,5.2578]
[1727069700445,0.7446,2661.3,2661.2,46.0578]
[1727069700849,0.7446,2661.3,2661.2,46.43355]
[1727069701038,0.3942,2661.8,2661.2,55.8154]
[1727069701245,0.3942,2661.8,2661.7,2.05]
[1727069701746,0.76986,2661.8,2661.7,2.05]
[1727069702047,0.3942,2661.8,2661.7,2.05]
[1727069703148,0.3942,2661.8,2661.6,0.37569]
[1727069703543,0.3942,2661.8,2661.5,5.2578]
[1727069703544,0.3942,2661.8,2661.5,5.6335]
[1727069703848,0.76986,2661.8,2661.5,5.6335]
[1727069704041,0.3942,2661.8,2661.5,5.6335]
[1727069704841,0.3942,2661.8,2661.7,0.37568]
[1727069705149,0.3942,2661.8,2661.7,2.05]
[1727069708556,0.7614,2662.0,2661.9,0.37565]
[1727069708749,0.389,2662.3,2662.2,0.37561]
[1727069708946,0.389,2662.3,2662.2,2.05]
[1727069709752,0.389,2662.3,2662.1,3.2078]
[1727069710348,0.389,2662.3,2662.2,40.8]
[1727069712055,0.76459,2662.3,2662.2,40.8]
[1727069712251,4.52059,2662.3,2662.2,40.8]
[1727069712458,0.37561,2662.2,2661.8,7.11174386]
[1727069712655,0.3826,2662.1,2661.8,7.11174386]
[1727069712960,0.3826,2662.1,2661.9,40.8]
[1727069713358,0.3826,2662.1,2661.9,42.27828386]
[1727069713861,0.3826,2662.1,2662.0,3.3340041]
[1727069714157,0.3826,2662.1,2662.0,5.3969134]
[1727069714359,0.3826,2662.1,2662.0,3.91862954]
[1727069714750,0.389,2662.3,2662.2,0.37561]
[1727069714949,0.389,2662.3,2662.2,4.8064688]
[1727069715153,0.389,2662.3,2662.2,5.76659661]
[1727069715354,0.397,2662.4,2662.2,3.91987911]
[1727069715555,0.397,2662.4,2662.3,3.71591299]
[1727069715760,0.397,2662.4,2662.3,1.86975278]
[1727069715978,0.397,2662.4,2662.3,1.6609513]
[1727069716154,0.397,2662.4,2662.3,2.24447522]
[1727069716466,0.397,2662.4,2662.3,1.86888522]
[1727069716858,0.397,2662.4,2662.3,3.33872073]
[1727069717159,0.397,2662.4,2662.3,1.66020378]
[1727069717364,0.397,2662.4,2662.3,1.86867186]
[1727069717752,0.37558,2662.4,2662.3,2.75427483]
[1727069717957,0.37558,2662.4,2662.3,1.28461378]
[1727069718459,0.74177,2662.5,2662.3,1.28461378]
[1727069718661,0.74177,2662.5,2662.2,3.51966105]
[1727069718856,0.74177,2662.5,2662.3,1.28292438]
[1727069719158,0.74177,2662.5,2662.2,3.51966105]
[1727069719373,0.74177,2662.5,2662.3,1.28308546]
[1727069719567,0.74177,2662.5,2662.2,3.51966105]
[1727069719866,0.74177,2662.5,2662.3,2.75266017]
[1727069720067,0.74177,2662.5,2662.3,1.46966105]
[1727069720265,0.74177,2662.5,2662.3,1.47015402]
[1727069721061,0.74177,2662.5,2662.2,3.52015402]
[1727069721062,0.3898,2662.4,2662.2,3.52015402]
[1727069721264,0.3898,2662.4,2662.3,1.28296641]
[1727069721459,0.3662,2662.5,2662.3,1.28296641]
[1727069721666,0.37556,2662.5,2662.4,1.28299757]
[1727069721870,0.37558,2662.4,2662.3,1.47015402]
[1727069722170,0.37557,2662.5,2662.3,1.28335272]
[1727069722365,0.37558,2662.4,2662.2,3.52015402]
[1727069722765,0.75529,2662.3,2662.2,1.47015402]
[1727069722968,1.11909,2662.3,2662.2,1.28380433]
[1727069723364,0.3826,2662.6,2662.2,6.54160433]
[1727069723561,1.13785,2662.6,2662.5,2.05]
[1727069723758,0.73936,2662.5,2662.3,2.05]
[1727069724567,0.3638,2662.5,2662.3,2.42559]
[1727069725473,0.3638,2662.5,2662.3,2.42558]
[1727069726071,0.3638,2662.5,2662.4,0.37558]
[1727069726304,0.3638,2662.5,2662.3,2.05]
[1727069726473,0.3638,2662.5,2662.3,2.4395]
[1727069726783,0.3638,2662.5,2662.3,2.81508]
[1727069727174,0.3638,2662.5,2662.3,2.4395]
[1727069727476,0.3638,2662.5,2662.3,2.81508]
[1727069727678,0.3638,2662.5,2662.3,0.3895]
[1727069727876,0.73938,2662.5,2662.2,6.72795402]
[1727069728082,0.37558,2662.4,2662.2,6.72795402]
[1727069728283,0.3638,2662.5,2662.2,6.72795402]
[1727069728284,0.73937,2662.5,2662.2,6.72795402]
[1727069729177,0.3638,2662.5,2662.4,2.05]
[1727069729374,0.7623,2662.6,2662.4,2.05]
[1727069730675,0.3755,2662.5,2662.4,2.05]
[1727069731184,0.7623,2662.6,2662.4,2.05]
[1727069732682,1.13785,2662.6,2662.4,2.05]
[1727069732989,1.13786,2662.6,2662.2,5.2578]
[1727069733180,1.13786,2662.6,2662.4,2.05]
[1727069733181,0.7623,2662.6,2662.4,2.05]
[1727069733984,1.13786,2662.6,2662.4,2.05]
[1727069734786,0.37556,2662.5,2662.2,5.2578]
[1727069735585,1.13786,2662.6,2662.2,5.2578]
[1727069736195,0.7623,2662.6,2662.2,5.6334]
[1727069737295,0.7623,2662.6,2662.4,2.05]
[1727069737795,0.7623,2662.6,2662.4,2.4238]
[1727069738089,0.7623,2662.6,2662.4,2.79938]
[1727069738280,0.7623,2662.6,2662.4,2.4238]
[1727069738487,0.7623,2662.6,2662.4,2.79938]
[1727069738687,0.3826,2662.6,2662.4,2.4238]
[1727069741094,0.7643,2662.6,2662.4,2.05]
[1727069741689,0.7643,2662.6,2662.2,6.7285107]
[1727069741883,1.13986,2662.6,2662.3,1.28338257]
[1727069742185,1.13986,2662.6,2662.2,7.1041107]
[1727069742383,0.3826,2662.6,2662.4,2.42557]
[1727069743187,0.3826,2662.6,2662.5,0.37556]
[1727069743389,3.94409923,2663.2,2662.5,12.9410583]
[1727069743602,0.7828,2663.1,2662.8,2.05]
[1727069743797,0.37551,2662.9,2662.8,2.05]
[1727069744187,0.37551,2662.9,2662.6,3.52012332]
[1727069744384,0.3755,2663.0,2662.7,2.75361083]
[1727069744597,0.7828,2663.1,2662.7,1.47012332]
[1727069744788,0.37551,2662.9,2662.7,1.47012332]
[1727069745398,0.37551,2662.9,2662.8,2.74942943]
[1727069745591,0.37551,2662.9,2662.8,1.27930611]
[1727069747489,0.7828,2663.1,2662.7,1.47012332]
[1727069747700,0.37552,2662.8,2662.6,3.52012332]
[1727069748000,0.7657,2662.7,2662.6,3.52012332]
[1727069748194,0.7657,2662.7,2662.6,4.80007051]
[1727069748394,0.7657,2662.7,2662.6,3.32994719]
[1727069748695,0.7657,2662.7,2662.6,3.91508149]
[1727069748902,0.7657,2662.7,2662.6,3.33059855]
[1727069749399,0.37555,2662.6,2662.5,4.68013393]
[1727069749601,0.76135,2662.6,2662.5,1.28110429]
[1727069749991,0.76135,2662.6,2662.4,1.47233393]
[1727069750195,0.76135,2662.6,2662.5,1.28110008]
[1727069751591,0.76135,2662.6,2662.5,2.75343401]
[1727069751789,11.08068,2662.6,2662.4,0.98237374]
[1727069751992,9.0138,2662.5,2662.1,1.47233393]
[1727069752300,0.37563,2662.0,2661.9,1.47233393]
[1727069752489,0.37563,2662.0,2661.9,0.58610643]
[1727069752694,0.7618,2662.2,2661.8,1.47233393]
[1727069752894,0.37565,2661.9,2661.8,1.47233393]
[1727069753095,0.37565,2661.9,2661.8,2.05867697]
[1727069753496,0.37562,2662.1,2661.8,2.05867697]
[1727069753701,0.7618,2662.2,2661.9,2.05847863]
[1727069753908,0.37562,2662.1,2661.9,1.47233393]
[1727069754206,0.37563,2662.0,2661.9,1.47233393]
[1727069754400,0.37563,2662.0,2661.9,2.05831912]
[1727069755102,0.37563,2662.0,2661.9,1.47233393]
[1727069756306,0.37563,2662.0,2661.8,1.47233393]
[1727069759801,0.7618,2662.2,2661.9,3.52233393]
[1727069760006,0.7618,2662.2,2662.0,0.3765]
[1727069760208,0.7618,2662.2,2662.0,41.1765]
[1727069760400,1.13741,2662.2,2662.0,0.3765]
[1727069760599,1.13741,2662.2,2661.9,3.52233393]
[1727069760806,0.3794,2662.1,2661.9,3.52233393]
[1727069761003,0.3794,2662.1,2661.9,44.32233393]
[1727069761806,0.3794,2662.1,2661.9,42.27233393]
[1727069762003,0.7618,2662.2,2661.9,44.69798393]
[1727069762399,0.7618,2662.2,2662.1,2.05]
[1727069762707,0.7592,2662.5,2662.1,4.10581792]
[1727069763004,0.3868,2662.4,2662.1,1.47106311]
[1727069763209,0.37562,2662.1,2661.9,42.27106311]
[1727069763399,0.37566,2661.9,2661.7,1.47106311]
[1727069763902,0.37566,2661.9,2661.6,42.27106311]
[1727069765000,1.50644,2662.0,2661.6,42.27106311]
[1727069765207,0.93892,2662.5,2661.9,2.05]
[1727069765208,3.2078,2662.5,2661.9,2.05]
[1727069765508,1.1224,2662.4,2662.1,2.05]
[1727069765711,0.7503,2662.4,2662.1,3.89986311]
[1727069766009,0.3721,2662.6,2662.2,1.47106311]
[1727069766214,0.7505,2662.6,2662.2,1.47106311]
[1727069766396,1.12605,2662.6,2662.2,1.47106311]
[1727069766803,0.37556,2662.5,2662.1,1.84986311]
[1727069767213,0.37559,2662.4,2662.1,1.47106311]
[1727069767510,0.387,2662.3,2662.1,1.47106311]
[1727069769000,0.3784,2662.6,2662.1,1.47106311]
[1727069769205,0.387,2662.8,2662.4,3.2078]
[1727069769501,3.94409923,2663.1,2662.5,0.7321]
[1727069769706,4.68327923,2663.1,2662.6,5.2578]
[1727069769907,4.68327923,2663.1,2662.6,6.72886311]
[1727069770305,0.3718,2663.2,2662.8,3.52106311]
[1727069770511,3.94409923,2663.6,2663.1,0.37548]
[1727069770706,3.94409923,2663.6,2663.2,0.3985]
[1727069770909,3.94409923,2663.6,2663.3,40.8]
[1727069771511,4.31951923,2663.6,2663.3,40.8]
[1727069771815,0.37544,2663.4,2663.3,40.8]
[1727069772113,0.37546,2663.3,2662.9,4.67886311]
[1727069772415,0.37547,2663.2,2663.0,42.06939672]
[1727069772617,0.37547,2663.2,2663.0,40.8]
[1727069773512,0.37547,2663.2,2662.9,4.67886311]
[1727069773513,0.3702,2663.3,2662.9,4.67886311]
[1727069773718,0.73819,2663.1,2662.9,3.2078]
[1727069774115,0.37549,2663.0,2662.9,3.2078]
[1727069777514,4.13069,2663.0,2662.9,3.2078]
[1727069779223,0.37549,2663.0,2662.9,3.2078]
[1727069781524,6.998,2664.0,2663.2,0.37546]
[1727069781717,4.37999923,2663.6,2663.3,5.63325]
[1727069781913,4.37999923,2663.6,2663.3,5.2578]
[1727069782123,0.3921,2663.9,2663.4,0.37543]
[1727069782324,0.76747,2663.9,2663.4,0.37543]
[1727069782638,0.37538,2663.8,2663.4,0.37543]
[1727069782923,0.37538,2663.8,2663.3,5.63325]
[1727069783729,0.37538,2663.8,2663.4,0.37543]
[1727069784623,0.37539,2663.7,2663.3,5.63325]
[1727069788528,0.37539,2663.7,2663.4,0.4175]
[1727069790526,0.3921,2663.9,2663.4,0.79293]
[1727069790724,0.37539,2663.8,2663.4,0.79293]
[1727069791225,0.37539,2663.7,2663.4,0.4175]
[1727069792223,0.37539,2663.8,2663.4,0.79293]
[1727069792432,0.3921,2663.9,2663.4,0.4175]
[1727069792727,0.3921,2663.9,2663.6,0.3754]
[1727069793129,7.15189923,2664.5,2663.8,5.2578]
[1727069793326,1.2473,2664.4,2664.0,0.37535]
[1727069793533,0.37531,2664.3,2664.0,43.66985]
[1727069793735,0.37531,2664.3,2664.0,43.2945]
[1727069793934,0.872,2664.4,2664.0,40.8]
[1727069794530,0.37531,2664.3,2664.0,40.8]
[1727069794927,1.2473,2664.4,2664.0,41.17535]
[1727069795126,0.37531,2664.3,2664.1,0.4073]
[1727069795625,0.872,2664.4,2663.9,0.4107]
[1727069795933,0.37533,2664.2,2663.9,40.8]
[1727069796837,0.872,2664.4,2663.9,40.8]
[1727069797035,0.37533,2664.2,2663.9,40.8]
[1727069798638,0.37534,2664.1,2663.9,40.8]
[1727069798936,0.37533,2664.2,2663.9,40.8]
[1727069799120,0.37533,2664.2,2663.8,3.2078]
[1727069799524,0.37533,2664.2,2663.8,44.38318]
[1727069802737,0.37533,2664.2,2663.8,44.0078]
[1727069803237,0.37533,2664.2,2663.8,44.38318]
[1727069804528,0.872,2664.4,2663.8,44.0078]
[1727069804949,0.37534,2664.2,2663.8,44.0078]
[1727069805136,0.37534,2664.1,2663.8,44.0078]
[1727069805537,0.37533,2664.2,2663.8,44.0078]
[1727069805932,0.37534,2664.1,2663.8,44.0078]
[1727069808634,0.37537,2663.9,2663.8,3.2078]
[1727069809338,0.79927,2663.9,2663.8,3.2078]
[1727069811938,0.37539,2663.7,2663.6,0.8225]
[1727069812135,0.37541,2663.6,2663.5,44.0078]
[1727069812534,0.37541,2663.6,2663.5,3.2078]
[1727069812940,0.3754,2663.7,2663.5,3.2078]
[1727069814136,0.3754,2663.7,2663.4,40.8]
[1727069814332,0.3754,2663.7,2663.6,3.2078]
[1727069816439,0.3754,2663.7,2663.4,40.8]
[1727069816645,0.3754,2663.7,2663.6,3.2078]
[1727069816845,0.78198,2663.8,2663.6,3.2078]
[1727069817144,0.78199,2663.8,2663.6,3.2078]
[1727069817346,0.37539,2663.7,2663.6,3.2078]
[1727069818545,0.4066,2663.8,2663.6,3.2078]
[1727069818841,0.37539,2663.7,2663.6,3.2078]
[1727069819241,0.4066,2663.8,2663.6,3.2078]
[1727069819539,0.78198,2663.8,2663.6,3.2078]
[1727069820334,4.161,2663.8,2663.4,1.4687901]
[1727069820539,0.4066,2663.8,2663.3,0.37545]
[1727069820746,0.4066,2663.8,2663.3,1.4687901]
[1727069821141,0.37542,2663.6,2663.3,1.4687901]